lending/lending_fUSD_20250913
["ID","MTS","AMOUNT","RATE_DAILY","PERIOD"]
[385355889,1757790763098,-767.61,0.00029589,2]
[385355890,1757790763107,-346.33667105,0.00029589,2]
[385355891,1757790763115,-400.0,0.00029589,2]
[385355892,1757790763124,-400.0,0.00029589,2]
[385355893,1757790763133,-400.0,0.00029589,2]
[385355894,1757790763142,-400.0,0.00029589,2]
[385355895,1757790763151,-400.0,0.00029589,2]
[385355896,1757790763160,-843.61,0.00029589,2]
[385355897,1757790763169,-721.19,0.00029589,2]
[385355898,1757790763179,-798.34,0.00029589,2]
[385355899,1757790763188,-400.0,0.00029589,2]
[385355900,1757790763198,-1380.97,0.00029589,2]
[385355901,1757790763207,-1507.18,0.00029589,2]
[385355902,1757790763216,-736.94,0.00029589,2]
[385355903,1757790763226,-8779.55,0.00029589,2]
[385355904,1757790763235,-400.0,0.00029589,2]
[385355905,1757790763244,-400.0,0.00029589,2]
[385355906,1757790763253,-1003.9,0.00029589,2]
[385355907,1757790763262,-594.63,0.00029589,2]
[385355908,1757790763271,-506.79,0.00029589,2]
[385355909,1757790763280,-729.26,0.00029589,2]
[385355910,1757790763290,-2622.41,0.00029589,2]
[385355911,1757790763299,-649.71,0.00029589,2]
[385355912,1757790763308,-666.01,0.00029589,2]
[385355913,1757790763317,-813.26,0.00029589,2]
[385355914,1757790763328,-752.66,0.00029589,2]
[385355915,1757790763337,-500.0,0.00029589,2]
[385355916,1757790763346,-745.71,0.00029589,2]
[385355917,1757790763355,-851.12,0.00029589,2]
[385355918,1757790763364,-1034.54,0.00029589,2]
[385355919,1757790763374,-436.15,0.00029589,2]
[385355920,1757790763383,-990.05,0.00029589,2]
[385355921,1757790763392,-955.65,0.00029589,2]
[385355922,1757790763401,-2504.84,0.00029589,2]
[385355923,1757790763411,-931.13,0.00029589,2]
[385355924,1757790763420,-400.0,0.00029589,2]
[385355925,1757790763430,-3206.705462,0.00029625,3]
[385355926,1757790763439,-2492.142925,0.00029625,3]
[385355927,1757790763448,-3896.254989,0.00029625,3]
[385355928,1757790763458,-1425.0,0.0002963,2]
[385355929,1757790763467,-500.0,0.00029691,2]
[385355930,1757790763479,-64882.25826843,0.000297,2]
[385355931,1757790763488,-151.03,0.00029715,2]
[385355932,1757790763497,-800.0,0.00029726,10]
[385355933,1757790763506,-800.0,0.00029726,10]
[385355934,1757790763515,-800.0,0.00029726,10]
[385355935,1757790763526,-800.0,0.00029726,10]
[385355936,1757790763536,-800.0,0.00029726,10]
[385355937,1757790763545,-800.0,0.00029726,10]
[385355938,1757790763555,-771.55,0.00029726,10]
[385355939,1757790763564,-164.06,0.0002974,2]
[385355940,1757790763573,-1425.0,0.00029752,2]
[385355941,1757790763583,-408.60878744,0.00029763,2]
[385355942,1757790763592,-1631.03118485,0.00029763,2]
[385355943,1757790763601,-1425.0,0.00029764,2]
[385355944,1757790763612,-392.0,0.000298,2]
[385355945,1757790763621,-1425.0,0.00029812,2]
[385355946,1757790763630,-488.41647021,0.00029846,2]
[385355947,1757790763640,-403.48,0.00029863,2]
[385355948,1757790763649,-400.0,0.00029863,2]
[385355949,1757790763658,-400.0,0.00029863,2]
[385355950,1757790763667,-699.06,0.00029863,2]
[385355951,1757790763677,-888.74,0.00029863,2]
[385355952,1757790763687,-1067.33,0.00029863,2]
[385355953,1757790763696,-494.9,0.00029863,2]
[385355954,1757790763705,-400.0,0.00029863,2]
[385355955,1757790763714,-1011.1,0.00029863,2]
[385355956,1757790763723,-518.1111024,0.00029863,2]
[385355957,1757790763732,-411.04,0.00029863,2]
[385355958,1757790763741,-400.0,0.00029863,2]
[385355959,1757790763750,-400.0,0.00029863,2]
[385355960,1757790763759,-302.56577765,0.00029863,2]
[385355961,1757790763768,-400.0,0.00029863,2]
[385355962,1757790763778,-487.32838648,0.00029863,2]
[385355963,1757790763787,-400.0,0.00029863,2]
[385355964,1757790763796,-436.55,0.00029863,2]
[385355965,1757790763805,-415.46,0.00029863,2]
[385355966,1757790763814,-1222.47,0.00029863,2]
[385355967,1757790763823,-400.0,0.00029863,2]
[385355968,1757790763832,-392.89489815,0.00029863,2]
[385355969,1757790763841,-622.37,0.00029863,2]
[385355970,1757790763850,-751.49,0.00029863,2]
[385355971,1757790763860,-500.0,0.00029863,2]
[385355972,1757790763869,-512.06,0.00029863,2]
[385355973,1757790763878,-400.0,0.00029863,2]
[385355974,1757790763887,-210.68168172,0.00029863,2]
[385355975,1757790763896,-400.0,0.00029863,2]
[385355976,1757790763905,-400.0,0.00029863,2]
[385355977,1757790763914,-516.89,0.00029863,2]
[385355978,1757790763923,-400.0,0.00029863,2]
[385355979,1757790763933,-572.28,0.00029863,2]
[385355980,1757790763943,-495.37641599,0.00029863,2]
[385355981,1757790763953,-400.0,0.00029863,2]
[385355982,1757790763963,-400.0,0.00029863,2]
[385355983,1757790763972,-400.0,0.00029863,2]
[385355984,1757790763982,-400.0,0.00029863,2]
[385355985,1757790763991,-405.34,0.00029863,2]
[385355986,1757790764001,-892.3,0.00029863,2]
[385355987,1757790764010,-400.0,0.00029863,2]
[385355988,1757790764020,-2090.35,0.00029863,2]
[385355989,1757790764029,-445.77,0.00029863,2]
[385355990,1757790764038,-849.51,0.00029863,2]
[385355991,1757790764047,-400.0,0.00029863,2]
[385355992,1757790764056,-434.99014492,0.00029863,2]
[385355993,1757790764065,-764.33,0.00029863,2]
[385355994,1757790764074,-471.58084398,0.00029863,2]
[385355995,1757790764083,-812.38,0.00029863,2]
[385355996,1757790764092,-579.38,0.00029863,2]
[385355997,1757790764101,-400.0,0.00029863,2]
[385355998,1757790764111,-546.06396657,0.00029863,2]
[385355999,1757790764120,-400.0,0.00029863,2]
[385356000,1757790764129,-400.0,0.00029863,2]
[385356001,1757790764138,-400.0,0.00029863,2]
[385356002,1757790764147,-400.0,0.00029863,2]
[385356003,1757790764156,-400.0,0.00029863,2]
[385356004,1757790764165,-187.3982786,0.00029863,2]
[385356005,1757790764174,-400.0,0.00029863,2]
[385356006,1757790764184,-400.0,0.00029863,2]
[385356007,1757790764193,-400.0,0.00029863,2]
[385356008,1757790764202,-1141.14,0.00029863,2]
[385356009,1757790764211,-593.32,0.00029863,2]
[385356010,1757790764220,-400.0,0.00029863,2]
[385356011,1757790764229,-762.02,0.00029863,2]
[385356012,1757790764238,-400.0,0.00029863,2]
[385356013,1757790764247,-400.0,0.00029863,2]
[385356014,1757790764257,-400.0,0.00029863,2]
[385356015,1757790764266,-633.2,0.00029863,2]
[385356016,1757790764275,-400.0,0.00029863,2]
[385356017,1757790764284,-548.72,0.00029863,2]
[385356018,1757790764293,-400.0,0.00029863,2]
[385356019,1757790764302,-400.0,0.00029863,2]
[385356020,1757790764311,-400.0,0.00029863,2]
[385356021,1757790764320,-400.0,0.00029863,2]
[385356022,1757790764330,-411.96,0.00029863,2]
[385356023,1757790764339,-653.34,0.00029863,2]
[385356024,1757790764348,-400.0,0.00029863,2]
[385356025,1757790764357,-400.0,0.00029863,2]
[385356026,1757790764366,-891.73,0.00029863,2]
[385356027,1757790764375,-1354.32,0.00029863,2]
[385356028,1757790764384,-598.23,0.00029863,2]
[385356029,1757790764393,-518.98,0.00029863,2]
[385356030,1757790764402,-925.24,0.00029863,2]
[385356031,1757790764411,-400.0,0.00029863,2]
[385356032,1757790764420,-400.0,0.00029863,2]
[385356033,1757790764429,-722.44,0.00029863,2]
[385356034,1757790764439,-400.0,0.00029863,2]
[385356035,1757790764448,-400.0,0.00029863,2]
[385356036,1757790764458,-506.66,0.00029863,2]
[385356037,1757790764467,-400.0,0.00029863,2]
[385356038,1757790764476,-1909.11,0.00029863,2]
[385356039,1757790764489,-505.45124583,0.00029863,2]
[385356040,1757790764498,-886.75,0.00029863,2]
[385356041,1757790764507,-400.0,0.00029863,2]
[385356042,1757790764517,-400.0,0.00029863,2]
[385356043,1757790764527,-400.0,0.00029863,2]
[385356044,1757790764537,-400.0,0.00029863,2]
[385356045,1757790764546,-400.0,0.00029863,2]
[385356046,1757790764555,-1138.1,0.00029863,2]
[385356047,1757790764565,-400.0,0.00029863,2]
[385356048,1757790764575,-400.0,0.00029863,2]
[385356049,1757790764584,-400.0,0.00029863,2]
[385356050,1757790764593,-400.0,0.00029863,2]
[385356051,1757790764602,-400.0,0.00029863,2]
[385356052,1757790764611,-400.0,0.00029863,2]
[385356053,1757790764620,-576.48,0.00029863,2]
[385356054,1757790764629,-400.0,0.00029863,2]
[385356055,1757790764638,-400.0,0.00029863,2]
[385356056,1757790764648,-712.7,0.00029863,2]
[385356057,1757790764661,-400.0,0.00029863,2]
[385356058,1757790764670,-400.0,0.00029863,2]
[385356059,1757790764680,-400.0,0.00029863,2]
[385356060,1757790764689,-2782.51,0.00029863,2]
[385356061,1757790764698,-400.0,0.00029863,2]
[385356062,1757790764707,-400.0,0.00029863,2]
[385356063,1757790764716,-749.03,0.00029863,2]
[385356064,1757790764725,-476.93,0.00029863,2]
[385356065,1757790764734,-400.0,0.00029863,2]
[385356066,1757790764743,-778.01,0.00029863,2]
[385356067,1757790764752,-652.17,0.00029863,2]
[385356068,1757790764762,-1095.32,0.00029863,2]
[385356069,1757790764771,-400.0,0.00029863,2]
[385356070,1757790764780,-450.34,0.00029863,2]
[385356071,1757790764790,-623.72,0.00029863,2]
[385356072,1757790764799,-400.0,0.00029863,2]
[385356073,1757790764808,-522.52,0.00029863,2]
[385356074,1757790764817,-1025.68,0.00029863,2]
[385356075,1757790764826,-400.0,0.00029863,2]
[385356076,1757790764836,-1547.47,0.00029863,2]
[385356077,1757790764846,-400.0,0.00029863,2]
[385356078,1757790764855,-400.0,0.00029863,2]
[385356079,1757790764864,-452.08,0.00029863,2]
[385356080,1757790764874,-400.0,0.00029863,2]
[385356081,1757790764883,-400.0,0.00029863,2]
[385356082,1757790764892,-954.04,0.00029863,2]
[385356083,1757790764901,-972.47,0.00029863,2]
[385356084,1757790764910,-400.0,0.00029863,2]
[385356085,1757790764919,-440.6,0.00029863,2]
[385356086,1757790764928,-400.0,0.00029863,2]
[385356087,1757790764937,-400.0,0.00029863,2]
[385356088,1757790764946,-400.0,0.00029863,2]
[385356089,1757790764955,-1107.3,0.00029863,2]
[385356090,1757790764964,-1360.89,0.00029863,2]
[385356091,1757790764973,-286.81876821,0.00029863,2]
[385356092,1757790764982,-438.49,0.00029863,2]
[385356093,1757790764990,-511.89,0.00029863,2]
[385356094,1757790764999,-875.02,0.00029863,2]
[385356095,1757790765008,-441.06,0.00029863,2]
[385356096,1757790765017,-540.34,0.00029863,2]
[385356097,1757790765026,-432.57,0.00029863,2]
[385356098,1757790765035,-605.1,0.00029863,2]
[385356099,1757790765044,-400.0,0.00029863,2]
[385356100,1757790765053,-979.03,0.00029863,2]
[385356101,1757790765062,-639.66,0.00029863,2]
[385356102,1757790765071,-405.61909754,0.00029863,2]
[385356103,1757790765080,-743.92,0.00029863,2]
[385356104,1757790765090,-268.97158279,0.00029863,2]
[385356105,1757790765099,-549.77,0.00029863,2]
[385356106,1757790765108,-400.0,0.00029863,2]
[385356107,1757790765117,-400.0,0.00029863,2]
[385356108,1757790765126,-867.52,0.00029863,2]
[385356109,1757790765135,-757.51,0.00029863,2]
[385356110,1757790765143,-400.0,0.00029863,2]
[385356111,1757790765154,-1369.33,0.00029863,2]
[385356112,1757790765163,-976.5,0.00029863,2]
[385356113,1757790765172,-714.21,0.00029863,2]
[385356114,1757790765181,-1200.51,0.00029863,2]
[385356115,1757790765190,-429.54,0.00029863,2]
[385356116,1757790765199,-931.9,0.00029863,2]
[385356117,1757790765208,-767.06,0.00029863,2]
[385356118,1757790765217,-522.36,0.00029863,2]
[385356119,1757790765226,-464.29,0.00029863,2]
[385356120,1757790765235,-400.0,0.00029863,2]
[385356121,1757790765244,-1050.24,0.00029863,2]
[385356122,1757790765253,-400.0,0.00029863,2]
[385356123,1757790765262,-712.0,0.00029863,2]
[385356124,1757790765393,-770.1,0.00029863,2]
[385356125,1757790765403,-1340.61,0.00029863,2]
[385356126,1757790765413,-503.78,0.00029863,2]
[385356127,1757790765422,-744.56,0.00029863,2]
[385356128,1757790765432,-933.78,0.00029863,2]
[385356129,1757790765441,-917.05,0.00029863,2]
[385356130,1757790765450,-601.03,0.00029863,2]
[385356131,1757790765460,-1166.06,0.00029863,2]
[385356132,1757790765470,-408.67,0.00029863,2]
[385356133,1757790765481,-400.0,0.00029863,2]
[385356134,1757790765492,-744.95,0.00029863,2]
[385356135,1757790765501,-962.63,0.00029863,2]
[385356136,1757790765510,-944.97,0.00029863,2]
[385356137,1757790765519,-697.23,0.00029863,2]
[385356138,1757790765530,-1128.5,0.00029863,2]
[385356139,1757790765539,-1287.15,0.00029863,2]
[385356140,1757790765548,-400.0,0.00029863,2]
[385356141,1757790765560,-1140.31,0.00029863,2]
[385356142,1757790765570,-1121.16,0.00029863,2]
[385356143,1757790765580,-883.84,0.00029863,2]
[385356144,1757790765590,-400.0,0.00029863,2]
[385356145,1757790765600,-400.0,0.00029863,2]
[385356146,1757790765610,-400.0,0.00029863,2]
[385356147,1757790765620,-400.0,0.00029863,2]
[385356148,1757790765630,-513.88,0.00029863,2]
[385356149,1757790765639,-766.79,0.00029863,2]
[385356150,1757790765648,-836.28,0.00029863,2]
[385356151,1757790765658,-400.0,0.00029863,2]
[385356152,1757790765667,-1062.97,0.00029863,2]
[385356153,1757790765677,-400.0,0.00029863,2]
[385356154,1757790765686,-701.46,0.00029863,2]
[385356155,1757790765696,-506.35954822,0.00029863,2]
[385356156,1757790765705,-400.0,0.00029863,2]
[385356157,1757790765714,-1010.43,0.00029863,2]
[385356158,1757790765723,-400.0,0.00029863,2]
[385356159,1757790765732,-618.9,0.00029863,2]
[385356160,1757790765742,-740.73,0.00029863,2]
[385356161,1757790765751,-400.0,0.00029863,2]
[385356162,1757790765760,-617.0,0.00029863,2]
[385356163,1757790765769,-955.87,0.00029863,2]
[385356164,1757790765779,-400.0,0.00029863,2]
[385356165,1757790765788,-1394.15,0.00029863,2]
[385356166,1757790765798,-645.46,0.00029863,2]
[385356167,1757790765807,-475.16,0.00029863,2]
[385356168,1757790765818,-400.0,0.00029863,2]
[385356169,1757790765827,-400.0,0.00029863,2]
[385356170,1757790765837,-1201.25,0.00029863,2]
[385356171,1757790765847,-1420.48,0.00029863,2]
[385356172,1757790765857,-436.7,0.00029863,2]
[385356173,1757790765867,-400.0,0.00029863,2]
[385356174,1757790765876,-251.84435133,0.00029863,2]
[385356175,1757790765885,-886.97,0.00029863,2]
[385356176,1757790765895,-695.44,0.00029863,2]
[385356177,1757790765904,-869.21,0.00029863,2]
[385356178,1757790765913,-1459.76,0.00029863,2]
[385356179,1757790765922,-563.58,0.00029863,2]
[385356180,1757790765933,-400.0,0.00029863,2]
[385356181,1757790765942,-565.26,0.00029863,2]
[385356182,1757790765952,-547.07268302,0.00029863,2]
[385356183,1757790765961,-1134.89,0.00029863,2]
[385356184,1757790765971,-404.56,0.00029863,2]
[385356185,1757790765980,-734.93,0.00029863,2]
[385356186,1757790765989,-1149.23,0.00029863,2]
[385356187,1757790765999,-400.0,0.00029863,2]
[385356188,1757790766008,-1190.66,0.00029863,2]
[385356189,1757790766017,-656.39,0.00029863,2]
[385356190,1757790766026,-1130.2,0.00029863,2]
[385356191,1757790766036,-400.0,0.00029863,2]
[385356192,1757790766045,-300.96561579,0.00029863,2]
[385356193,1757790766054,-297.03374957,0.00029863,2]
[385356194,1757790766063,-467.40580938,0.00029863,2]
[385356195,1757790766072,-914.37,0.00029863,2]
[385356196,1757790766081,-869.45,0.00029863,2]
[385356197,1757790766090,-400.0,0.00029863,2]
[385356198,1757790766099,-459.11,0.00029863,2]
[385356199,1757790766109,-1022.06,0.00029863,2]
[385356200,1757790766118,-400.0,0.00029863,2]
[385356201,1757790766127,-400.0,0.00029863,2]
[385356202,1757790766137,-516.71,0.00029863,2]
[385356203,1757790766146,-400.0,0.00029863,2]
[385356204,1757790766156,-400.0,0.00029863,2]
[385356205,1757790766165,-400.0,0.00029863,2]
[385356206,1757790766174,-1379.73,0.00029863,2]
[385356207,1757790766184,-899.94,0.00029863,2]
[385356208,1757790766193,-400.0,0.00029863,2]
[385356209,1757790766204,-866.46,0.00029863,2]
[385356210,1757790766213,-400.0,0.00029863,2]
[385356211,1757790766222,-556.4,0.00029863,2]
[385356212,1757790766232,-1195.99,0.00029863,2]
[385356213,1757790766242,-518.54,0.00029863,2]
[385356214,1757790766251,-1740.08,0.00029863,2]
[385356215,1757790766260,-1006.76,0.00029863,2]
[385356216,1757790766270,-400.0,0.00029863,2]
[385356217,1757790766279,-400.0,0.00029863,2]
[385356218,1757790766289,-400.0,0.00029863,2]
[385356219,1757790766298,-668.89,0.00029863,2]
[385356220,1757790766307,-400.0,0.00029863,2]
[385356221,1757790766317,-529.54,0.00029863,2]
[385356222,1757790766326,-927.44,0.00029863,2]
[385356223,1757790766336,-662.77,0.00029863,2]
[385356224,1757790766346,-400.0,0.00029863,2]
[385356225,1757790766355,-400.0,0.00029863,2]
[385356226,1757790766365,-586.65,0.00029863,2]
[385356227,1757790766375,-744.19,0.00029863,2]
[385356228,1757790766384,-899.11,0.00029863,2]
[385356229,1757790766394,-770.78,0.00029863,2]
[385356230,1757790766403,-644.35,0.00029863,2]
[385356231,1757790766413,-714.15,0.00029863,2]
[385356232,1757790766423,-453.23,0.00029863,2]
[385356233,1757790766432,-1002.56,0.00029863,2]
[385356234,1757790766442,-809.12,0.00029863,2]
[385356235,1757790766451,-400.0,0.00029863,2]
[385356236,1757790766461,-400.0,0.00029863,2]
[385356237,1757790766470,-400.0,0.00029863,2]
[385356238,1757790766482,-400.0,0.00029863,2]
[385356239,1757790766491,-864.64,0.00029863,2]
[385356240,1757790766501,-400.0,0.00029863,2]
[385356241,1757790766510,-836.53,0.00029863,2]
[385356242,1757790766519,-400.0,0.00029863,2]
[385356243,1757790766530,-400.0,0.00029863,2]
[385356244,1757790766539,-400.0,0.00029863,2]
[385356245,1757790766549,-400.0,0.00029863,2]
[385356246,1757790766558,-800.39,0.00029863,2]
[385356247,1757790766567,-759.84,0.00029863,2]
[385356248,1757790766576,-400.0,0.00029863,2]
[385356249,1757790766585,-438.06,0.00029863,2]
[385356250,1757790766596,-890.46,0.00029863,2]
[385356251,1757790766606,-1067.29,0.00029863,2]
[385356252,1757790766616,-483.11,0.00029863,2]
[385356253,1757790766625,-405.84802138,0.00029863,2]
[385356254,1757790766635,-621.88,0.00029863,2]
[385356255,1757790766644,-2863.78,0.00029863,2]
[385356256,1757790766653,-440.32,0.00029863,2]
[385356257,1757790766663,-400.0,0.00029863,2]
[385356258,1757790766673,-1123.98,0.00029863,2]
[385356259,1757790766682,-757.94,0.00029863,2]
[385356260,1757790766692,-400.0,0.00029863,2]
[385356261,1757790766702,-557.63,0.00029863,2]
[385356262,1757790766712,-861.65,0.00029863,2]
[385356263,1757790766723,-803.76,0.00029863,2]
[385356264,1757790766735,-835.94,0.00029863,2]
[385356265,1757790766746,-434.25,0.00029863,2]
[385356266,1757790766755,-578.44,0.00029863,2]
[385356267,1757790766764,-400.0,0.00029863,2]
[385356268,1757790766774,-550.07,0.00029863,2]
[385356269,1757790766783,-800.87,0.00029863,2]
[385356270,1757790766792,-400.0,0.00029863,2]
[385356271,1757790766802,-541.06,0.00029863,2]
[385356272,1757790766811,-400.0,0.00029863,2]
[385356273,1757790766820,-652.82,0.00029863,2]
[385356274,1757790766830,-400.0,0.00029863,2]
[385356275,1757790766839,-423.72,0.00029863,2]
[385356276,1757790766849,-400.0,0.00029863,2]
[385356277,1757790766858,-1300.44,0.00029863,2]
[385356278,1757790766867,-400.0,0.00029863,2]
[385356279,1757790766877,-400.0,0.00029863,2]
[385356280,1757790766886,-439.16,0.00029863,2]
[385356281,1757790766896,-400.0,0.00029863,2]
[385356282,1757790766905,-826.3,0.00029863,2]
[385356283,1757790766915,-787.45,0.00029863,2]
[385356284,1757790766924,-535.57,0.00029863,2]
[385356285,1757790766935,-800.47,0.00029863,2]
[385356286,1757790766944,-1253.6,0.00029863,2]
[385356287,1757790766954,-400.0,0.00029863,2]
[385356288,1757790766963,-544.69,0.00029863,2]
[385356289,1757790766972,-400.0,0.00029863,2]
[385356290,1757790766983,-400.0,0.00029863,2]
[385356291,1757790766993,-842.01,0.00029863,2]
[385356292,1757790767002,-944.98,0.00029863,2]
[385356293,1757790767013,-1082.49,0.00029863,2]
[385356294,1757790767022,-556.97,0.00029863,2]
[385356295,1757790767031,-652.8,0.00029863,2]
[385356296,1757790767040,-489.49,0.00029863,2]
[385356297,1757790767049,-400.0,0.00029863,2]
[385356298,1757790767058,-400.0,0.00029863,2]
[385356299,1757790767067,-400.0,0.00029863,2]
[385356300,1757790767076,-400.0,0.00029863,2]
[385356301,1757790767085,-439.06,0.00029863,2]
[385356302,1757790767098,-890.6,0.00029863,2]
[385356303,1757790767107,-589.14,0.00029863,2]
[385356304,1757790767116,-583.29,0.00029863,2]
[385356305,1757790767126,-708.58,0.00029863,2]
[385356306,1757790767135,-400.0,0.00029863,2]
[385356307,1757790767146,-537.23544682,0.00029863,2]
[385356308,1757790767155,-531.52,0.00029863,2]
[385356309,1757790767164,-400.0,0.00029863,2]
[385356310,1757790767173,-1252.15,0.00029863,2]
[385356311,1757790767183,-400.0,0.00029863,2]
[385356312,1757790767193,-498.55717004,0.00029863,2]
[385356313,1757790767203,-947.61,0.00029863,2]
[385356314,1757790767212,-400.0,0.00029863,2]
[385356315,1757790767221,-1050.56,0.00029863,2]
[385356316,1757790767231,-400.0,0.00029863,2]
[385356317,1757790767241,-400.0,0.00029863,2]
[385356318,1757790767250,-400.0,0.00029863,2]
[385356319,1757790767259,-400.0,0.00029863,2]
[385356320,1757790767269,-872.42,0.00029863,2]
[385356321,1757790767278,-791.71,0.00029863,2]
[385356322,1757790767288,-407.96,0.00029863,2]
[385356323,1757790767297,-400.0,0.00029863,2]
[385356324,1757790767307,-400.0,0.00029863,2]
[385356325,1757790767316,-449.85959688,0.00029863,2]
[385356326,1757790767325,-983.81,0.00029863,2]
[385356327,1757790767335,-2593.64,0.00029863,2]
[385356328,1757790767345,-868.8,0.00029863,2]
[385356329,1757790767691,-846.53,0.00029863,2]
[385356330,1757790767701,-730.89,0.00029863,2]
[385356331,1757790767711,-400.0,0.00029863,2]
[385356332,1757790767723,-400.0,0.00029863,2]
[385356333,1757790767733,-785.21,0.00029863,2]
[385356334,1757790767745,-400.0,0.00029863,2]
[385356335,1757790767755,-400.0,0.00029863,2]
[385356336,1757790767764,-400.0,0.00029863,2]
[385356337,1757790767773,-964.92,0.00029863,2]
[385356338,1757790767782,-447.29,0.00029863,2]
[385356339,1757790767791,-400.0,0.00029863,2]
[385356340,1757790767801,-759.47,0.00029863,2]
[385356341,1757790767810,-428.63,0.00029863,2]
[385356342,1757790767820,-400.0,0.00029863,2]
[385356343,1757790767829,-400.0,0.00029863,2]
[385356344,1757790767838,-308.24434263,0.00029863,2]
[385356345,1757790767847,-620.45,0.00029863,2]
[385356346,1757790767856,-862.8,0.00029863,2]
[385356347,1757790767865,-537.7,0.00029863,2]
[385356348,1757790767875,-505.66,0.00029863,2]
[385356349,1757790767884,-400.0,0.00029863,2]
[385356350,1757790767892,-400.0,0.00029863,2]
[385356351,1757790767902,-427.09,0.00029863,2]
[385356352,1757790767910,-400.0,0.00029863,2]
[385356353,1757790767919,-1263.32,0.00029863,2]
[385356354,1757790767929,-400.0,0.00029863,2]
[385356355,1757790767938,-400.0,0.00029863,2]
[385356356,1757790767947,-400.0,0.00029863,2]
[385356357,1757790767956,-786.15,0.00029863,2]
[385356358,1757790767965,-4665.54,0.00029863,2]
[385356359,1757790767975,-400.0,0.00029863,2]
[385356360,1757790767984,-769.42,0.00029863,2]
[385356361,1757790767993,-958.92,0.00029863,2]
[385356362,1757790768002,-1162.64,0.00029863,2]
[385356363,1757790768011,-400.0,0.00029863,2]
[385356364,1757790768021,-400.0,0.00029863,2]
[385356365,1757790768030,-843.12,0.00029863,2]
[385356366,1757790768039,-400.0,0.00029863,2]
[385356367,1757790768048,-830.89,0.00029863,2]
[385356368,1757790768058,-400.0,0.00029863,2]
[385356369,1757790768067,-400.0,0.00029863,2]
[385356370,1757790768077,-871.15,0.00029863,2]
[385356371,1757790768086,-484.74,0.00029863,2]
[385356372,1757790768095,-400.0,0.00029863,2]
[385356373,1757790768104,-582.6,0.00029863,2]
[385356374,1757790768113,-1106.22,0.00029863,2]
[385356375,1757790768123,-1197.3,0.00029863,2]
[385356376,1757790768132,-400.0,0.00029863,2]
[385356377,1757790768141,-3316.79,0.00029863,2]
[385356378,1757790768151,-400.0,0.00029863,2]
[385356379,1757790768161,-400.0,0.00029863,2]
[385356380,1757790768170,-400.0,0.00029863,2]
[385356381,1757790768179,-1081.81,0.00029863,2]
[385356382,1757790768188,-898.38,0.00029863,2]
[385356383,1757790768198,-400.0,0.00029863,2]
[385356384,1757790768208,-744.46,0.00029863,2]
[385356385,1757790768218,-1406.57,0.00029863,2]
[385356386,1757790768228,-420.47,0.00029863,2]
[385356387,1757790768237,-2017.53,0.00029863,2]
[385356388,1757790768246,-1035.92,0.00029863,2]